bitfinex/quotes_ETHUSD_20251012
["timestamp","ask_amount","ask_price","bid_price","bid_amount"]
[1760240529801,2.3803,3803.6,3803.2,2.62934226]
[1760240529802,1.92,3803.6,3803.2,2.62934226]
[1760240529976,2.3803,3803.6,3803.2,2.62934226]
[1760240530176,2.3803,3803.6,3803.5,2.63115735]
[1760240530177,1.92,3803.6,3803.5,2.63115735]
[1760240530376,0.4603,3804.3,3803.5,0.002]
[1760240530581,3.08863624,3804.7,3803.5,2.63115258]
[1760240530777,1.92,3804.4,3803.5,0.002]
[1760240530999,2.1533,3803.6,3803.5,0.002]
[1760240531213,0.2333,3803.6,3803.5,0.002]
[1760240531422,0.6936,3803.6,3803.5,0.002]
[1760240531594,2.6136,3803.6,3803.5,0.002]
[1760240531796,0.6936,3803.6,3803.5,0.002]
[1760240531989,0.4603,3804.2,3803.5,0.002]
[1760240532213,0.4603,3804.2,3803.6,2.62902411]
[1760240532423,2.3803,3804.6,3803.8,2.62894723]
[1760240532604,0.4603,3804.6,3803.9,2.62887386]
[1760240533113,0.4603,3804.6,3803.5,0.002]
[1760240533405,0.4603,3804.6,3803.9,2.62883692]
[1760240533610,0.4603,3805.3,3803.5,0.4418]
[1760240533797,3.08823526,3805.3,3804.3,2.62857488]
[1760240533994,0.4603,3805.3,3803.6,0.6336]
[1760240534191,0.4603,3805.3,3803.8,0.6336]
[1760240534640,0.4603,3805.3,3804.7,2.62828744]
[1760240535529,3.08829583,3805.2,3803.0,0.6336]
[1760240535697,2.62830929,3804.8,3804.1,2.62868372]
[1760240536103,2.62821085,3804.9,3804.1,2.62868372]
[1760240536424,3.08833721,3805.2,3803.7,0.6336]
[1760240536425,2.3803,3805.2,3803.7,0.6336]
[1760240536593,2.3803,3805.2,3804.0,2.62881177]
[1760240536594,0.4603,3805.2,3804.0,2.62881177]
[1760240536794,2.62772691,3805.6,3804.8,2.6282541]
[1760240537006,1.92,3805.5,3804.8,2.6282541]
[1760240537190,2.62778441,3805.5,3804.8,2.6282541]
[1760240537418,2.62778441,3805.5,3803.8,2.62894999]
[1760240537419,1.92,3805.0,3803.5,0.002]
[1760240537627,1.92,3804.3,3803.6,2.62908437]
[1760240537826,2.62861552,3804.3,3803.9,0.1312]
[1760240538132,0.4603,3804.2,3803.9,0.1312]
[1760240538317,2.75961831,3804.6,3803.9,0.1312]
[1760240538705,2.3803,3804.4,3803.9,0.1312]
[1760240539255,0.4603,3804.3,3803.5,0.002]
[1760240539398,1.92,3804.0,3803.5,0.002]
[1760240539840,1.92,3804.2,3803.5,0.002]
[1760240540021,2.62867763,3804.2,3803.5,0.002]
[1760240540206,3.08919226,3803.9,3803.5,0.002]
[1760240540410,0.4603,3803.9,3803.5,0.002]
[1760240540610,0.6936,3803.8,3803.5,0.002]
[1760240540809,2.62908823,3803.6,3803.5,0.002]
[1760240541330,5.00938823,3803.6,3803.5,0.002]
[1760240541747,2.3803,3803.6,3803.5,0.002]
[1760240542149,0.4582,3804.3,3803.5,0.002]
[1760240542345,0.4582,3804.3,3803.6,2.62908781]
[1760240542603,0.4582,3804.3,3803.6,2.62903149]
[1760240542909,0.4582,3804.5,3803.7,2.6289697]
[1760240543110,0.4582,3804.5,3803.5,2.63109775]
[1760240543522,2.62875047,3804.1,3803.5,0.002]
[1760240543707,0.2354,3803.6,3803.5,0.002]
[1760240544120,0.6936,3803.6,3803.5,0.002]
[1760240545008,0.4582,3803.6,3803.5,0.002]
[1760240548649,2.3782,3803.6,3803.5,0.002]
[1760240549032,5.00728823,3803.6,3803.5,0.002]
[1760240549233,5.66275705,3803.6,3803.5,0.002]
[1760240551755,3.03366882,3803.6,3803.5,0.002]
[1760240551927,2.5094,3803.6,3803.5,0.002]
[1760240552323,2.3782,3803.6,3803.5,0.002]
[1760240552542,1.92,3803.6,3803.5,0.002]
[1760240553444,2.3782,3803.6,3803.5,0.002]
[1760240554549,1.92,3803.6,3803.5,0.002]
[1760240555981,0.3666,3803.9,3803.5,0.002]
[1760240556335,0.6936,3803.9,3803.5,0.002]
[1760240556535,0.1312,3804.1,3803.5,0.1332]
[1760240556740,2.0512,3804.5,3803.8,0.1312]
[1760240557038,0.95443604,3804.4,3803.8,0.1312]
[1760240557287,1.92,3804.2,3803.8,0.1312]
[1760240557579,0.4582,3804.2,3803.8,0.1312]
[1760240558437,0.1312,3804.5,3803.8,0.1312]
[1760240558438,3.08696241,3804.1,3803.8,0.1312]
[1760240558643,2.3782,3804.0,3803.8,0.1312]
[1760240558869,0.4582,3804.0,3803.8,0.1312]
[1760240559039,1.92,3803.8,3803.5,0.002]
[1760240559259,3.32248088,3803.9,3803.5,0.002]
[1760240559459,0.4582,3803.7,3803.5,0.002]
[1760240559768,1.92,3803.6,3803.5,0.002]
[1760240559972,0.4082,3803.7,3803.5,0.002]
[1760240560289,0.001,3804.3,3803.5,0.002]
[1760240560487,0.001,3804.3,3803.5,2.63113227]
[1760240560772,2.62962059,3804.3,3803.5,2.63113227]
[1760240560948,2.62962059,3804.3,3803.5,2.63114596]
[1760240561157,0.001,3804.3,3803.5,2.63114596]
[1760240561352,2.375955,3804.3,3803.5,0.002]
[1760240561679,4.78448823,3803.6,3803.5,0.002]
[1760240562201,2.5641,3803.6,3803.5,0.002]
[1760240562476,1.92,3803.6,3803.5,0.002]
[1760240563276,0.001,3804.3,3803.5,0.002]
[1760240563477,2.62874267,3804.1,3803.5,0.002]
[1760240563976,2.3287,3804.2,3803.5,0.002]
[1760240564374,3.03737573,3804.2,3803.5,0.002]
[1760240565166,1.92,3804.2,3803.5,0.002]
[1760240565365,0.001,3804.3,3803.5,0.002]
[1760240565366,2.84608823,3803.6,3803.5,0.002]
[1760240565590,5.19288823,3803.6,3803.5,0.002]
[1760240567117,1.92,3803.6,3803.5,0.002]
[1760240568902,1.92,3803.6,3803.5,0.4723]
[1760240569081,1.921,3804.3,3803.5,0.1332]
[1760240569283,0.001,3804.3,3803.5,0.1332]
[1760240569494,1.92,3804.1,3803.5,0.1332]
[1760240569906,1.92,3803.8,3803.5,0.1332]
[1760240570466,2.3468,3803.8,3803.5,0.1332]
[1760240570707,4.76608823,3803.6,3803.5,0.002]
[1760240571085,5.19288823,3803.6,3803.5,0.002]
[1760240575017,2.5638,3803.6,3803.5,0.002]
[1760240575217,1.92,3803.6,3803.5,0.002]
[1760240575890,2.3427,3803.6,3803.5,0.002]
[1760240576417,4.97178823,3803.6,3803.5,0.002]
[1760240576594,2.3427,3803.6,3803.5,0.002]
[1760240577392,1.92,3803.6,3803.5,0.002]
[1760240578124,4.96788823,3803.6,3803.5,0.002]
[1760240578325,5.75019643,3803.6,3803.5,0.002]
[1760240579088,2.3388,3803.6,3803.5,0.002]
[1760240579616,4.96788823,3803.6,3803.5,0.002]
[1760240579928,1.92,3803.6,3803.5,0.002]
[1760240580228,4.96598823,3803.6,3803.5,0.002]
[1760240581824,18.05458996,3803.6,3803.5,0.002]
[1760240582023,2.62936474,3803.2,3803.1,0.002]
[1760240582226,4.54936474,3803.2,3803.1,0.002]
[1760240582423,4.96436474,3803.2,3803.1,0.002]
[1760240582723,4.86436474,3803.2,3803.1,0.002]
[1760240582930,5.61372818,3803.2,3803.1,0.002]
[1760240584328,4.86436474,3803.2,3803.1,0.002]
[1760240587542,5.20487841,3803.2,3803.1,0.002]
[1760240588042,2.63015375,3802.1,3800.6,0.4704]
[1760240588210,1.92,3802.0,3800.9,2.63094554]
[1760240588409,3.04521116,3802.0,3801.0,2.63086775]
[1760240588605,1.92,3801.7,3800.7,2.63107939]
[1760240588825,0.2344,3801.9,3801.0,2.63088102]
[1760240589027,4.55042287,3801.7,3800.5,2.6311723]
[1760240589232,3.04353893,3801.8,3800.8,2.6310195]
[1760240589422,1.92,3801.7,3800.9,2.63093568]
[1760240589632,0.4132,3801.8,3801.0,2.63085193]
[1760240589860,2.63040385,3801.7,3800.2,0.4704]
[1760240590023,2.63040385,3801.7,3800.7,2.63108742]
[1760240590221,1.92,3801.6,3800.8,2.63102036]
[1760240590440,1.92,3801.6,3800.7,2.63103157]
[1760240590765,0.6495,3802.1,3800.7,0.4704]
[1760240591102,2.63032313,3801.9,3800.8,2.63102504]
[1760240591371,0.4261,3801.8,3800.2,0.4704]
[1760240591660,1.92,3801.1,3800.1,2.63145377]
[1760240591856,1.92,3801.1,3800.2,2.63142598]
[1760240592214,4.55087921,3801.1,3799.9,0.4704]
[1760240592446,4.55087921,3801.1,3799.7,0.2124]
[1760240592447,1.92,3800.9,3800.0,2.63157304]
[1760240592744,1.92,3800.9,3799.7,2.84418182]
[1760240592745,1.92,3801.0,3799.8,2.63171413]
[1760240592946,1.92,3801.0,3800.1,2.63150288]
[1760240593147,0.4261,3801.2,3799.7,0.2124]
[1760240593444,1.92,3801.1,3800.2,2.63142991]
[1760240593647,2.3461,3801.2,3800.3,2.63136847]
[1760240593819,0.4261,3801.2,3800.2,2.63138302]
[1760240594021,2.3461,3801.2,3800.2,2.63138302]
[1760240594325,1.92,3801.0,3799.9,0.4704]
[1760240594526,1.92,3801.1,3800.2,2.631435]
[1760240594729,2.630821,3801.1,3800.1,2.63148659]
[1760240594953,2.630821,3801.1,3800.0,2.63155421]
[1760240595160,2.63043229,3801.7,3799.7,0.2124]
[1760240595359,0.4261,3801.0,3799.7,0.2124]
[1760240595665,0.33715286,3801.8,3800.3,2.63133519]
[1760240595666,0.4261,3801.5,3800.3,2.63133519]
[1760240595864,1.92,3801.0,3800.0,2.63151384]
[1760240596380,3.05692289,3801.1,3799.9,0.002]
[1760240596381,0.4261,3800.9,3799.9,0.002]
[1760240596676,1.92,3800.3,3799.9,0.002]
[1760240596887,2.63137398,3800.3,3799.9,0.002]
[1760240597192,0.4261,3800.2,3799.9,0.002]
[1760240597582,1.92,3800.3,3799.9,0.002]
[1760240597876,0.4261,3800.1,3799.9,0.002]
[1760240598095,0.1312,3800.6,3800.0,0.1312]
[1760240598276,2.3461,3801.4,3800.3,2.63131015]
[1760240598446,1.92,3801.2,3800.8,0.1312]
[1760240598646,0.5573,3801.4,3800.8,0.1312]
[1760240598877,0.5573,3801.4,3800.5,2.63117269]
[1760240598878,0.4261,3801.9,3800.5,0.6336]
[1760240599055,0.4261,3801.9,3801.3,0.1312]
[1760240599276,0.4261,3801.9,3801.7,0.1312]
[1760240600191,2.98263832,3802.1,3801.7,0.1312]
[1760240600346,0.4261,3801.8,3801.7,0.1312]
[1760240601348,2.3461,3801.8,3801.7,0.1312]
[1760240602502,0.3525,3802.1,3801.7,0.1312]
[1760240602503,4.68136082,3802.1,3801.7,0.1312]
[1760240602656,2.86211035,3802.5,3801.7,0.1312]
[1760240602853,1.92,3802.4,3802.0,0.1312]
[1760240603090,2.3354,3802.4,3802.0,0.1312]
[1760240603287,0.4154,3802.3,3802.0,0.1312]
[1760240604083,0.1312,3802.7,3802.0,0.1312]
[1760240604282,0.1312,3802.7,3801.6,0.4679]
[1760240604283,0.4154,3803.3,3801.9,0.6336]
[1760240604588,0.1312,3803.4,3802.1,0.2214]
[1760240604792,0.1312,3803.4,3802.9,0.1312]
[1760240605159,0.4154,3803.1,3802.9,0.1312]
[1760240605596,2.63038245,3803.2,3801.8,0.4679]
[1760240605597,0.4154,3803.0,3801.8,2.63027742]
[1760240605771,0.4154,3803.0,3802.7,0.1312]
[1760240605968,4.54945009,3803.1,3802.7,0.1312]
[1760240606168,1.92,3802.9,3802.7,0.1312]
[1760240606761,3.04491796,3803.0,3802.7,0.1312]
[1760240606962,0.4154,3803.0,3802.7,0.1312]
[1760240607181,0.001,3803.2,3802.9,0.1312]
[1760240607470,0.001,3803.2,3802.2,2.85145511]
[1760240607471,0.001,3803.2,3803.1,0.1312]
[1760240608289,4.96576474,3803.2,3803.1,0.1312]
[1760240608488,4.54965948,3802.8,3802.6,0.1312]
[1760240608889,0.4154,3802.7,3802.6,0.1312]
[1760240609101,3.04511046,3802.7,3802.6,0.1312]
[1760240609461,0.4154,3802.7,3802.6,0.1312]
[1760240613510,3.17701195,3803.2,3802.6,0.1312]
[1760240613807,1.92,3802.9,3802.6,0.1312]
[1760240614174,2.3354,3802.9,3802.6,0.1312]
[1760240614675,0.4154,3802.9,3802.6,0.1312]
[1760240614878,2.3354,3802.9,3802.6,0.1312]
[1760240615769,0.4154,3802.8,3802.6,0.1312]
[1760240616871,0.001,3803.1,3802.6,0.1312]
[1760240617408,0.001,3803.1,3802.9,0.1312]
[1760240617874,0.4164,3803.1,3802.9,0.1312]
[1760240618080,0.4154,3803.0,3802.9,0.1312]
[1760240618675,0.001,3803.1,3802.2,2.63005558]
[1760240618880,0.001,3803.1,3802.1,2.85150957]
[1760240619175,3.04589818,3803.1,3802.0,2.63013773]
[1760240619685,3.04589818,3803.1,3802.1,2.63011971]
[1760240620218,2.6295035,3803.0,3802.0,2.63018232]
[1760240620512,2.62985177,3802.5,3801.6,0.002]
[1760240620685,1.92,3802.4,3801.6,0.002]
[1760240621295,2.62992364,3802.4,3801.6,0.002]
[1760240621612,0.4154,3802.5,3801.6,0.002]
[1760240621613,2.63000952,3802.3,3801.6,0.002]
[1760240621777,0.4154,3802.5,3801.6,0.002]
[1760240621974,0.4154,3802.2,3801.6,0.002]
[1760240622615,3.04546809,3802.2,3801.6,0.002]
[1760240622782,0.4154,3802.2,3801.6,0.002]
[1760240623313,2.63013313,3802.1,3801.6,0.002]
[1760240623613,1.9173705,3802.8,3801.6,0.002]
[1760240623910,0.53107012,3802.7,3801.6,0.002]
[1760240624228,0.87158379,3802.7,3801.6,0.002]
[1760240624391,0.001,3803.1,3801.7,0.4679]
[1760240624586,0.001,3803.1,3801.8,0.6336]
[1760240624950,0.001,3803.1,3802.0,0.6336]
[1760240625100,0.001,3803.1,3803.0,2.62950302]
[1760240625302,0.001,3803.1,3802.9,2.62956607]
[1760240625714,0.001,3803.1,3803.0,2.62950302]
[1760240625912,0.001,3803.1,3803.0,3.06480302]
[1760240626906,0.001,3803.1,3803.0,3.69840302]
[1760240627641,0.001,3804.1,3803.6,2.62908823]
[1760240627803,0.001,3804.1,3803.6,3.26268823]
[1760240628002,0.001,3804.1,3803.6,3.69798823]
[1760240628333,0.001,3804.1,3803.6,5.61798823]
[1760240628534,0.001,3804.7,3803.7,1.92]
[1760240628708,0.001,3804.7,3804.6,3.5868972]
[1760240629140,0.001,3804.7,3804.6,4.0221972]
[1760240629343,0.001,3804.7,3804.6,3.0636972]
[1760240629575,0.001,3804.7,3804.6,3.6972972]
[1760240634403,0.001,3804.7,3804.6,16.3649334]
[1760240634604,0.001,3804.7,3804.6,18.2849334]
[1760240635845,1e-08,3805.3,3805.2,2.62798276]
[1760240636168,1e-08,3805.3,3805.2,3.26158276]
[1760240636438,1e-08,3805.3,3805.2,3.69288276]
[1760240637156,1e-08,3805.3,3805.2,0.6336]
[1760240637307,1e-08,3805.3,3805.2,3.05928276]
[1760240637506,1e-08,3805.3,3805.2,3.69288276]
[1760240639211,1e-08,3805.3,3805.2,3.82408276]
[1760240639543,1e-08,3805.3,3805.2,2.75918276]
[1760240639741,1e-08,3805.3,3805.2,3.82408276]
[1760240641630,1e-08,3805.3,3805.2,3.39278276]
[1760240642053,0.001,3805.5,3805.4,3.26144464]
[1760240642238,0.001,3805.7,3805.3,0.4313]
[1760240642551,0.001,3805.7,3804.8,0.4313]
[1760240642762,0.001,3805.7,3805.1,0.6336]
[1760240643122,0.001,3805.7,3805.5,2.62776253]
[1760240643757,0.001,3805.7,3805.6,2.62770653]
[1760240643935,0.001,3805.7,3805.6,3.05900653]
[1760240644328,0.001,3805.7,3805.5,2.62776721]
[1760240644524,0.001,3805.7,3804.9,0.4313]
[1760240644725,0.001,3805.7,3805.2,2.62797773]
[1760240645062,0.001,3805.7,3805.3,0.6336]
[1760240645770,0.001,3805.7,3805.0,0.6336]
[1760240645917,0.001,3805.7,3805.3,0.4313]
[1760240646123,0.001,3805.7,3805.4,2.62784464]
[1760240646351,0.001,3805.7,3805.4,0.4313]
[1760240647019,0.001,3805.7,3805.5,2.62777558]
[1760240647264,0.001,3805.7,3805.6,2.62770653]
[1760240647632,0.001,3805.7,3805.1,3.05928684]
[1760240647831,0.001,3805.7,3805.5,3.26137178]
[1760240648050,0.001,3805.7,3805.5,0.6336]
[1760240648251,0.001,3805.7,3805.0,0.6336]
[1760240648467,0.001,3805.7,3805.0,0.4313]
[1760240648770,0.001,3805.7,3805.2,0.6336]
[1760240648948,0.001,3805.7,3805.6,3.26130653]
[1760240649525,0.001,3805.7,3805.6,3.69260653]
[1760240650971,0.001,3805.7,3805.2,0.6336]
[1760240651261,0.001,3805.7,3805.5,0.6336]
[1760240651976,0.001,3805.7,3805.6,2.75890653]
[1760240652130,0.001,3805.7,3805.6,3.19020653]
[1760240653254,0.001,3805.7,3805.6,0.5625]
[1760240653621,0.001,3805.7,3805.6,0.1312]
[1760240654073,0.001,3805.7,3804.0,0.4313]
[1760240654074,1.92,3805.5,3804.0,0.4313]
[1760240654265,0.4518,3805.4,3804.3,2.6305961]
[1760240654428,3.07965368,3805.4,3804.3,2.6305961]
[1760240654634,0.4518,3805.4,3804.3,2.6305961]
[1760240654835,0.4518,3805.4,3804.3,3.0618961]
[1760240655034,0.4518,3805.4,3804.4,0.6336]
[1760240655242,0.4518,3805.4,3804.3,3.0618961]
[1760240655862,0.4518,3805.4,3804.4,2.62853263]
[1760240656760,2.3718,3805.4,3804.4,2.62853263]
[1760240657494,0.001,3805.7,3804.7,0.6336]
[1760240657782,0.001,3805.7,3804.7,3.26192394]
[1760240658267,1.92,3805.6,3804.7,0.6336]
[1760240658469,0.47737434,3805.6,3804.5,0.4313]
[1760240658707,2.62788571,3805.4,3804.3,0.002]
[1760240658832,2.62788571,3805.4,3804.3,0.6356]
[1760240659033,2.88704074,3805.3,3804.3,0.002]
[1760240659847,2.62798276,3805.2,3804.3,0.002]
[1760240660463,1.92,3804.9,3804.3,0.002]
[1760240660665,0.2591,3805.1,3804.3,0.002]
[1760240660864,2.62853538,3804.4,3804.3,0.002]
[1760240661069,4.54853538,3804.4,3804.3,0.002]
[1760240661292,4.80763538,3804.4,3804.3,0.002]
[1760240661698,5.55124302,3804.4,3804.3,0.002]
[1760240666324,2.1791,3804.4,3804.3,0.002]
[1760240666527,0.2591,3804.4,3804.3,0.002]
[1760240666840,0.1312,3804.5,3804.3,0.002]
[1760240667001,0.2604,3805.4,3804.3,0.1332]
[1760240667208,0.1312,3805.3,3804.6,0.1312]
[1760240667422,0.2604,3805.4,3804.3,0.002]
[1760240667731,4.29814403,3805.4,3804.9,0.1312]
[1760240668032,0.1312,3805.5,3804.9,0.1312]
[1760240668332,2.62784464,3805.4,3804.9,0.1312]
[1760240668541,0.53877716,3805.4,3804.3,0.002]
[1760240668694,1.92,3805.0,3804.3,0.002]
[1760240668892,1.92,3805.1,3804.3,0.002]
[1760240669139,1.921,3805.5,3804.3,0.002]
[1760240669293,2.62853538,3804.4,3804.3,0.002]
[1760240669493,4.54853538,3804.4,3804.3,0.002]
[1760240669828,1.92,3804.4,3804.3,0.002]
[1760240670552,0.001,3805.5,3804.3,0.452]
[1760240670751,0.001,3805.5,3804.3,0.002]
[1760240671258,1.92,3804.6,3804.3,0.002]
[1760240671429,2.62798276,3805.2,3804.3,0.002]
[1760240671749,1.92,3804.4,3804.3,0.002]
[1760240672556,2.62801523,3805.2,3804.3,0.002]
[1760240672756,1.92,3805.1,3804.3,0.002]
[1760240672938,4.54793034,3805.3,3804.3,0.002]
[1760240673139,2.62805182,3805.1,3804.3,0.002]
[1760240673457,2.37489303,3805.2,3804.3,0.002]
[1760240673627,0.45489303,3805.2,3804.3,0.002]
[1760240673957,2.62853538,3804.4,3804.3,0.002]
[1760240674150,4.54853538,3804.4,3804.3,0.002]
[1760240676073,1.92,3804.4,3804.3,0.002]
[1760240677341,1.92,3805.2,3804.3,0.002]
[1760240677746,2.62793454,3805.3,3804.3,0.002]
[1760240678363,1.92,3804.9,3804.3,0.002]
[1760240678544,1.92,3804.9,3804.6,0.1312]
[1760240679366,0.1312,3805.2,3804.3,0.002]
[1760240679367,1.92,3805.2,3804.3,0.002]
[1760240679663,1.92,3805.2,3804.8,0.1312]
[1760240680535,2.62799506,3805.2,3804.8,0.1312]
[1760240680736,1.92,3805.0,3804.8,0.1312]
[1760240681149,2.62813896,3805.0,3804.8,0.1312]
[1760240681356,4.54804866,3805.2,3804.8,0.1312]
[1760240681558,2.6280585,3805.1,3804.8,0.1312]
[1760240682268,2.6280585,3805.1,3804.3,0.002]
[1760240682269,0.73071867,3805.1,3804.3,0.002]
[1760240682568,1.92,3804.5,3804.3,0.002]
[1760240682948,4.54853538,3804.4,3804.3,0.002]
[1760240689797,1.92,3804.4,3804.3,0.002]
[1760240690002,0.1312,3804.8,3804.3,0.002]
[1760240690375,2.0512,3804.8,3804.3,0.002]
[1760240690592,0.1312,3804.8,3804.3,0.002]
[1760240690896,0.1322,3805.4,3804.7,0.1312]
[1760240691100,2.0522,3805.4,3804.7,0.1312]
[1760240691268,2.0522,3805.4,3804.3,0.4603]
[1760240691269,0.001,3805.4,3804.4,0.6336]
[1760240691602,0.001,3805.4,3805.1,0.1312]
[1760240691964,0.001,3805.4,3804.3,0.002]
[1760240691965,1.92,3805.1,3804.3,0.002]
[1760240692167,2.62805861,3805.1,3804.9,0.1312]
[1760240692400,4.54812089,3805.0,3804.9,0.1312]
[1760240692567,4.54821991,3804.9,3804.7,0.1312]
[1760240692774,2.62825904,3804.8,3804.7,0.1312]
[1760240693083,1.92,3805.0,3804.7,0.1312]
[1760240693485,1.92,3805.2,3804.7,0.1312]
[1760240693665,1.92,3805.1,3804.7,0.1312]
[1760240694109,2.6281363,3805.0,3804.7,0.1312]
[1760240694310,1.92,3805.0,3804.7,0.1312]
[1760240694606,0.1312,3805.3,3804.7,0.1312]
[1760240694607,2.75912733,3805.3,3804.7,0.1312]
[1760240694791,1.92,3805.2,3804.7,0.1312]
[1760240695503,0.1312,3805.3,3804.7,0.1312]
[1760240696064,2.62815637,3805.0,3804.7,0.1312]
[1760240696269,2.62819426,3804.9,3804.7,0.1312]
[1760240696573,2.62825904,3804.8,3804.7,0.1312]
[1760240696762,2.62840811,3804.6,3804.3,0.1332]
[1760240696963,2.62849629,3804.5,3804.3,0.1332]
[1760240697166,2.62840181,3804.6,3804.3,0.1332]
[1760240697394,0.1312,3804.9,3804.3,0.1332]
[1760240697569,1.92,3804.4,3804.3,0.1332]
[1760240697778,4.54853538,3804.4,3804.3,0.002]
[1760240699001,5.27936138,3804.4,3804.3,0.002]
[1760240699375,4.54853538,3804.4,3804.3,0.002]
[1760240704092,2.62888854,3805.4,3804.3,0.002]
[1760240704093,0.001,3805.4,3804.3,0.002]
[1760240704323,2.62853538,3804.4,3804.3,0.002]
[1760240705622,2.62900684,3803.8,3802.9,0.5896]
[1760240706042,0.1334,3803.9,3802.3,0.2154]
[1760240706194,0.099,3803.8,3802.4,0.4494]
[1760240706399,0.099,3803.8,3802.0,2.63018583]
[1760240706636,2.6293539,3803.3,3802.1,2.63011917]
[1760240706860,0.099,3803.3,3802.1,0.2358]
[1760240707011,0.099,3803.2,3801.6,3.08184626]
[1760240707192,2.62992889,3802.4,3801.6,0.002]
[1760240707395,1.92,3802.6,3801.6,0.002]
[1760240707619,2.62991721,3802.5,3801.6,0.6356]
[1760240707819,1.92,3802.6,3801.6,0.002]
[1760240708546,2.62990755,3802.5,3801.6,0.002]
[1760240708942,2.62990755,3802.5,3801.6,0.6356]
[1760240709114,1.92,3802.6,3802.4,0.1312]
[1760240709306,2.62979671,3802.6,3802.4,0.1312]
[1760240709946,1.92,3802.6,3802.4,0.1312]
[1760240710851,1.92,3802.5,3802.4,0.1312]
[1760240711152,2.62984878,3802.5,3802.4,0.1312]
[1760240711712,2.72884878,3802.5,3802.4,0.1312]
[1760240711918,2.019,3802.5,3802.4,0.1312]
[1760240712222,1.92,3802.5,3802.4,0.1312]
[1760240712421,2.019,3802.5,3802.4,0.1312]
[1760240713137,2.62998786,3802.3,3801.6,0.002]
[1760240713318,1.92,3802.2,3801.6,0.002]
[1760240713952,1.92,3802.2,3802.1,0.1312]
[1760240714260,2.63005628,3802.2,3802.1,0.1312]
[1760240714560,2.72905628,3802.2,3802.1,0.1312]
[1760240714965,2.63014692,3802.1,3801.9,0.1312]
[1760240715163,4.55019463,3802.0,3801.9,0.1312]
[1760240715367,5.56912091,3802.0,3801.9,0.1312]
[1760240715543,4.5503242,3801.9,3801.6,0.1332]
[1760240715748,2.1454,3801.9,3801.6,0.1332]
[1760240715947,0.1312,3802.3,3801.6,0.1332]
[1760240716128,3.26244903,3804.0,3801.8,0.1312]
[1760240716129,1.92,3802.6,3801.8,0.1312]
[1760240716332,0.1312,3802.7,3802.2,0.1312]
[1760240716579,0.1081,3802.6,3802.2,0.1312]
[1760240716743,1.92,3802.4,3802.2,0.1312]
[1760240716939,2.73803347,3802.4,3802.2,0.1312]
[1760240717169,0.1081,3802.4,3802.2,0.1312]
[1760240717560,4.65808711,3802.3,3802.2,0.1312]
[1760240717737,1.92,3802.0,3801.6,0.002]
[1760240717931,1.92,3801.8,3801.6,0.002]
[1760240718161,2.84587062,3802.4,3801.6,0.002]
[1760240718348,2.63000301,3802.3,3801.6,0.002]
[1760240718642,2.73794922,3802.5,3801.6,0.002]
[1760240718891,0.1081,3802.5,3801.6,0.002]
[1760240719067,0.1081,3802.9,3801.6,0.4514]
[1760240719264,1.92,3802.6,3801.6,0.4514]
[1760240719767,0.3311,3803.4,3802.3,2.62992005]
[1760240719967,0.001,3802.9,3802.4,0.2358]
[1760240720471,0.001,3802.9,3802.2,0.6336]
[1760240720636,0.001,3802.9,3802.0,0.6336]
[1760240720967,0.001,3802.9,3802.2,0.6852]
[1760240721270,0.001,3802.9,3802.8,0.6336]
[1760240721456,0.001,3802.9,3802.8,3.26324131]
[1760240721770,0.001,3802.9,3802.8,3.71214131]
[1760240722472,0.001,3802.9,3802.3,3.26355731]
[1760240722679,0.001,3802.9,3802.3,0.6336]
[1760240723559,0.001,3802.9,3802.8,3.26324131]
[1760240724048,0.001,3802.9,3802.8,3.71214131]
[1760240724950,0.001,3803.3,3803.2,3.26296474]
[1760240725365,0.001,3803.3,3803.2,3.71186474]
[1760240727390,0.001,3803.3,3803.0,2.67876188]
[1760240727391,0.001,3803.3,3803.0,0.0493]
[1760240727865,0.001,3803.3,3803.2,0.1312]
[1760240728068,5.00531694,3803.3,3803.0,0.0493]
[1760240728301,4.54943388,3803.1,3803.0,0.0493]
[1760240728799,4.64933388,3803.1,3803.0,0.0493]
[1760240730354,1.92,3803.0,3801.6,0.002]
[1760240730588,0.0999,3803.1,3801.6,0.002]
[1760240730589,2.63040218,3801.7,3801.6,0.002]
[1760240731764,4.55040218,3801.7,3801.6,0.002]
[1760240732381,5.3917529,3801.7,3801.6,0.002]
[1760240733360,5.2906529,3801.7,3801.6,0.002]
[1760240733593,5.3917529,3801.7,3801.6,0.002]
[1760240734502,5.3917529,3801.7,3800.8,0.002]
[1760240734503,2.63067897,3801.3,3801.2,1e-08]
[1760240734674,4.55067897,3801.3,3801.2,1e-08]
[1760240734874,5.36990486,3801.3,3801.2,1e-08]
[1760240737292,5.28510486,3801.3,3801.2,1e-08]
[1760240739484,2.64697897,3801.3,3801.2,1e-08]
[1760240744581,4.56697897,3801.3,3801.2,1e-08]
[1760240746420,4.55067897,3801.3,3801.2,1e-08]
[1760240746622,2.63060411,3801.5,3801.2,1e-08]
[1760240746823,2.63020343,3802.0,3801.2,0.45800001]
[1760240747023,0.1312,3801.9,3801.4,0.1312]
[1760240747325,0.1034,3801.8,3801.2,1e-08]
[1760240747500,2.63025756,3802.0,3801.2,1e-08]
[1760240747827,2.63034268,3801.8,3801.2,0.45800001]